bitfinex-derivatives/quotes_ETHF0:USTF0_20250627
["timestamp","ask_amount","ask_price","bid_price","bid_amount"]
[1750989060389,0.41112,2431.4,2431.0,1.4656]
[1750989060591,1.10752,2431.4,2431.0,1.4656]
[1750989060893,0.6964,2431.4,2431.0,1.4656]
[1750989061084,3.2078,2431.3,2430.7,5.13576703]
[1750989061285,4.4638,2431.3,2430.7,6.51206703]
[1750989061680,0.41115,2431.2,2430.7,6.51206703]
[1750989061888,0.41115,2431.2,2430.8,1.4295]
[1750989062588,0.41117,2431.1,2430.8,1.4295]
[1750989062988,0.41115,2431.2,2430.8,1.4295]
[1750989063297,0.41116,2431.1,2430.8,1.4295]
[1750989063794,3.2078,2431.3,2430.8,1.4295]
[1750989063989,3.61893,2431.3,2430.8,1.8407]
[1750989064192,0.41114,2431.2,2430.8,1.4295]
[1750989064994,0.41116,2431.1,2430.8,1.4295]
[1750989065194,3.2078,2431.3,2430.8,1.4295]
[1750989065587,4.4638,2431.3,2430.8,1.4295]
[1750989066295,0.41117,2431.1,2430.8,1.4295]
[1750989066593,6.99617,2431.1,2430.8,1.4295]
[1750989067579,6.585,2431.1,2430.8,1.4295]
[1750989067784,6.99616,2431.1,2430.8,1.4295]
[1750989069596,0.41118,2431.0,2430.8,1.4295]
[1750989069892,0.4112,2430.9,2430.7,0.6727]
[1750989070187,0.6971,2430.9,2430.4,4.5936]
[1750989070393,0.7281,2430.8,2430.4,4.5936]
[1750989070594,0.41123,2430.7,2430.4,4.5936]
[1750989072087,0.7281,2430.8,2430.4,4.5936]
[1750989072288,0.41125,2430.6,2430.3,0.7259]
[1750989072487,3.61903,2430.7,2430.3,2.1117]
[1750989072687,10.23803,2430.7,2430.3,2.1117]
[1750989073294,9.8268,2430.7,2430.4,0.41127]
[1750989073484,9.8268,2430.7,2430.5,1.3228]
[1750989073988,6.619,2430.7,2430.5,1.3228]
[1750989074789,7.03023,2430.7,2430.5,1.3228]
[1750989075998,1.13932,2430.8,2430.5,1.3228]
[1750989076693,0.41123,2430.7,2430.5,1.3228]
[1750989078803,1.13931,2430.8,2430.5,1.3228]
[1750989079003,0.41124,2430.7,2430.5,1.3228]
[1750989079305,3.2078,2430.6,2430.3,0.7259]
[1750989079499,3.2078,2430.6,2430.3,2.083]
[1750989079696,0.41126,2430.5,2430.3,2.083]
[1750989079894,0.41128,2430.4,2430.3,2.083]
[1750989081606,0.41127,2430.5,2430.3,2.083]
[1750989082307,0.4113,2430.3,2430.1,0.7174]
[1750989082603,0.41129,2430.4,2430.1,1.4442]
[1750989082803,0.41129,2430.4,2430.2,1.4309]
[1750989083194,1.09497,2430.5,2430.2,1.4309]
[1750989083795,10.23806,2430.6,2430.2,1.84221]
[1750989084000,9.8268,2430.6,2430.2,1.84221]
[1750989084203,6.619,2430.6,2430.3,1.4309]
[1750989084506,6.62,2430.6,2430.3,1.4309]
[1750989084698,1.13931,2430.8,2430.3,1.4309]
[1750989084896,7.75931,2430.8,2430.4,0.41128]
[1750989085094,7.75931,2430.8,2430.5,1.4105]
[1750989085299,7.75931,2430.8,2430.5,2.1392]
[1750989085502,7.03121,2430.8,2430.5,2.1392]
[1750989086703,3.2078,2430.9,2430.5,2.55045]
[1750989087300,3.2078,2430.9,2430.6,0.41124]
[1750989087508,3.2078,2430.9,2430.7,2.54122]
[1750989087703,6.62,2431.1,2430.8,1.4105]
[1750989087909,7.03117,2431.1,2430.9,0.7298]
[1750989088105,7.03117,2431.1,2431.0,1.3674]
[1750989088703,6.62,2431.1,2431.0,1.3674]
[1750989088907,7.03116,2431.1,2431.0,1.3674]
[1750989089107,0.41118,2431.0,2430.9,0.7298]
[1750989089308,3.61898,2431.0,2430.9,0.7298]
[1750989090914,0.4112,2430.9,2430.7,0.7195]
[1750989091604,0.4112,2430.9,2430.7,2.0915]
[1750989092813,0.4112,2430.9,2430.8,1.372]
[1750989093915,0.41121,2430.8,2430.6,0.7228]
[1750989094120,0.41123,2430.7,2430.6,0.7228]
[1750989094312,0.6828,2430.9,2430.6,0.7228]
[1750989094716,0.41122,2430.8,2430.6,0.7228]
[1750989095217,0.41122,2430.8,2430.7,1.3416]
[1750989095813,0.6828,2430.9,2430.7,1.3416]
[1750989096020,0.41121,2430.8,2430.7,1.3416]
[1750989097922,7.68093805,2430.8,2430.2,1.20206703]
[1750989098123,0.41131,2430.2,2430.1,1.20206703]
[1750989098722,1.77601,2430.2,2430.1,1.20206703]
[1750989098915,1.77601,2430.2,2429.9,1.60252521]
[1750989098916,0.41133,2430.1,2430.0,1.20206703]
[1750989099116,3.09226805,2430.1,2430.0,1.20206703]
[1750989099322,0.41133,2430.1,2430.0,1.20206703]
[1750989102628,0.41141,2429.6,2429.5,2.45032234]
[1750989103122,3.2078,2429.7,2429.3,4.62292234]
[1750989103331,0.41144,2429.5,2429.3,2.1726]
[1750989103524,0.41142,2429.6,2429.3,2.1726]
[1750989103926,3.6192,2429.7,2429.3,2.1726]
[1750989104226,3.2078,2429.7,2429.3,2.58405]
[1750989104426,3.6192,2429.7,2429.3,2.1726]
[1750989105629,0.41141,2429.6,2429.3,2.1726]
[1750989105823,0.41143,2429.5,2429.3,2.1726]
[1750989106432,0.41142,2429.6,2429.3,2.1726]
[1750989106734,3.6192,2429.7,2429.3,2.58406]
[1750989106934,3.6192,2429.7,2429.3,2.1726]
[1750989107431,0.41142,2429.6,2429.3,2.1726]
[1750989107830,3.6192,2429.7,2429.3,2.1726]
[1750989108031,0.41142,2429.6,2429.3,2.1726]
[1750989108732,3.2078,2429.7,2429.3,2.1726]
[1750989109137,3.6192,2429.7,2429.3,2.1726]
[1750989109531,0.4114,2429.7,2429.3,2.58406]
[1750989109833,0.4114,2429.7,2429.3,2.1726]
[1750989110129,0.41141,2429.6,2429.3,2.1726]
[1750989110632,0.41143,2429.5,2429.3,2.1726]
[1750989111235,0.41142,2429.6,2429.3,2.1726]
[1750989112831,6.592,2429.8,2429.3,2.1726]
[1750989113135,0.41141,2429.6,2429.3,2.1726]
[1750989113527,0.4114,2429.7,2429.3,2.58406]
[1750989113726,6.592,2429.8,2429.3,2.58406]
[1750989113727,0.41141,2429.6,2429.3,2.1726]
[1750989114931,0.41143,2429.5,2429.3,2.1726]
[1750989115133,0.41145,2429.4,2429.3,2.1726]
[1750989116331,3.2078,2429.7,2429.3,2.1726]
[1750989116736,0.41145,2429.4,2429.3,2.1726]
[1750989117038,0.41144,2429.5,2429.3,2.1726]
[1750989117237,3.2078,2429.7,2429.3,2.1726]
[1750989117533,0.41145,2429.4,2429.3,2.1726]
[1750989118432,0.41149,2429.2,2428.8,7.00454]
[1750989118633,0.41149,2429.2,2429.1,1.4096]
[1750989119032,0.41151,2429.1,2428.9,0.7154]
[1750989119228,0.41151,2429.0,2428.9,0.7154]
[1750989119435,0.41149,2429.2,2428.9,0.7154]
[1750989119635,0.41149,2429.2,2429.0,1.4096]
[1750989119946,0.4115,2429.1,2429.0,1.4096]
[1750989120636,0.41148,2429.2,2429.0,1.4096]
[1750989120844,0.7261,2429.3,2429.0,1.4096]
[1750989121231,0.4115,2429.1,2429.0,1.4096]
[1750989121637,0.7261,2429.3,2429.0,1.4096]
[1750989121638,0.41149,2429.2,2429.0,1.4096]
[1750989121839,0.7261,2429.3,2429.0,1.4096]
[1750989122244,3.41086806,2429.3,2429.0,1.4096]
[1750989122838,3.41086806,2429.3,2428.8,0.7284]
[1750989122839,2.68476806,2429.1,2428.8,0.7284]
[1750989123040,3.09629806,2428.9,2428.8,2.14]
[1750989123441,0.7063,2428.9,2428.8,2.14]
[1750989123639,3.2078,2429.0,2428.8,2.14]
[1750989123944,4.32562,2429.0,2428.8,2.14]
[1750989124236,0.41153,2428.9,2428.8,2.14]
[1750989125939,4.32562,2429.0,2428.8,2.14]
[1750989126740,3.2078,2429.0,2428.8,2.14]
[1750989129446,3.61932,2429.0,2428.8,2.14]
[1750989129644,0.41153,2428.9,2428.8,2.14]
[1750989130238,3.61932,2429.0,2428.8,2.14]
[1750989132646,3.2078,2429.0,2428.8,2.14]
[1750989132838,3.2078,2429.0,2428.8,2.55154]
[1750989133092,3.2078,2429.0,2428.8,5.23630806]
[1750989133845,0.41149,2429.2,2428.8,5.23630806]
[1750989133846,6.579,2429.2,2429.1,0.4115]
[1750989134044,3.2078,2429.3,2429.2,0.41148]
[1750989134240,3.2078,2429.3,2429.2,3.09624806]
[1750989134547,3.2078,2429.3,2429.2,2.68476806]
[1750989134935,3.2078,2429.3,2429.2,5.49096806]
[1750989135541,3.2078,2429.3,2429.2,5.90244806]
[1750989135940,3.2078,2429.3,2429.2,2.8062]
[1750989136348,6.99044,2429.5,2429.2,2.8062]
[1750989136647,6.99044,2429.5,2429.3,1.44]
[1750989138249,3.09621806,2429.4,2429.3,1.44]
[1750989138450,7.66264,2429.5,2429.3,1.44]
[1750989139049,0.41145,2429.4,2429.3,1.44]
[1750989139841,7.2512,2429.5,2429.3,1.44]
[1750989140445,7.66263,2429.5,2429.3,1.44]
[1750989141353,7.66263,2429.5,2429.2,0.7089]
[1750989141354,0.41146,2429.4,2429.2,0.7089]
[1750989141650,7.66264,2429.5,2429.2,0.7089]
[1750989141845,7.66264,2429.5,2429.3,1.4666]
[1750989142551,7.2512,2429.5,2429.3,1.4666]
[1750989142750,7.66263,2429.5,2429.3,1.4666]
[1750989145555,0.41145,2429.4,2429.3,1.4666]
[1750989147052,2.68476806,2429.4,2429.0,3.2078]
[1750989147248,7.2512,2429.5,2428.5,6.578]
[1750989147249,0.41151,2429.0,2428.9,0.6816]
[1750989147650,0.41153,2428.9,2428.8,1.3523]
[1750989149552,0.41155,2428.8,2428.7,0.6816]
[1750989150058,0.41156,2428.7,2428.6,3.2078]
[1750989150567,0.41158,2428.6,2428.5,2.0821]
[1750989151959,0.41158,2428.6,2428.2,4.81143596]
[1750989152264,0.6918,2428.7,2428.2,3.2078]
[1750989152459,9.26376806,2428.6,2428.3,1.4542]
[1750989152653,3.09638806,2428.4,2428.2,3.2078]
[1750989152854,0.41162,2428.4,2428.2,3.2078]
[1750989153054,0.41161,2428.5,2428.2,3.2078]
[1750989153264,9.67534806,2428.6,2428.2,4.662]
[1750989153459,9.26376806,2428.6,2428.3,1.4542]
[1750989153765,0.41164,2428.3,2428.1,0.7229]
[1750989154165,1.07664,2428.3,2428.1,0.7229]
[1750989155070,1.07664,2428.3,2428.1,2.1464]
[1750989155466,0.41165,2428.2,2428.1,2.1464]
[1750989155771,0.41167,2428.1,2427.6,4.70014402]
[1750989155969,3.61947,2428.1,2427.8,0.7104]
[1750989156168,3.61947,2428.1,2427.9,1.4235]
[1750989157173,0.41168,2428.0,2427.9,1.4235]
[1750989160169,0.4117,2427.9,2427.8,0.7104]
[1750989162971,3.2078,2428.1,2427.8,0.7104]
[1750989163172,3.2078,2428.1,2427.8,2.0699]
[1750989163866,0.41168,2428.1,2427.8,2.0699]
[1750989164874,0.41168,2428.0,2427.8,2.0699]
[1750989165274,0.41168,2428.1,2427.8,2.0699]
[1750989166271,0.41169,2428.0,2427.8,2.0699]
[1750989166579,0.4117,2427.9,2427.8,2.0699]
[1750989167779,1.1322,2427.9,2427.8,2.0699]
[1750989169770,0.41178,2427.5,2427.2,3.2078]
[1750989169966,0.41176,2427.6,2427.4,0.6718]
[1750989170180,0.41176,2427.6,2427.5,1.3247]
[1750989171675,0.41177,2427.5,2427.4,0.6718]
[1750989171979,9.26076806,2427.6,2427.2,1.3247]
[1750989171980,0.4118,2427.3,2427.2,1.3247]
[1750989172177,6.9878,2427.3,2427.2,1.3247]
[1750989173281,65.2118,2427.3,2426.1,3.28123218]
[1750989173573,3.2078,2426.5,2426.2,2.40592259]
[1750989173876,1.9462,2427.2,2426.2,2.81790259]
[1750989173877,0.41188,2426.8,2426.2,2.81790259]
[1750989174078,0.41188,2426.8,2426.5,2.68476806]
[1750989174079,6.577,2426.8,2426.5,2.68476806]
[1750989174273,6.577,2426.8,2426.6,1.401]
[1750989174674,3.2078,2426.9,2426.6,1.401]
[1750989174978,6.577,2426.9,2426.6,1.401]
[1750989175281,6.577,2426.9,2426.6,1.81291]
[1750989175475,6.30438806,2427.2,2426.7,0.4119]
[1750989175674,6.577,2427.0,2426.7,0.4119]
[1750989176177,6.578,2427.1,2426.7,3.09665806]
[1750989176777,3.2078,2427.2,2426.8,3.61968]
[1750989176976,56.006,2427.3,2426.9,2.68476806]
[1750989177481,56.006,2427.3,2427.0,0.7028]
[1750989177669,6.578,2427.3,2427.1,0.7285]
[1750989178574,6.578,2427.3,2427.2,1.3978]
[1750989179175,3.61958,2427.5,2427.2,1.3978]
[1750989179380,6.98974,2427.7,2427.2,1.80961]
[1750989179680,0.41175,2427.6,2427.2,1.3978]
[1750989179880,0.41177,2427.5,2427.3,1.399]
[1750989180072,0.41177,2427.5,2427.4,0.7028]
[1750989180268,0.41176,2427.6,2427.4,0.7028]
[1750989180570,0.41176,2427.6,2427.5,1.399]
[1750989180767,6.98974,2427.7,2427.5,1.399]
[1750989180971,0.41175,2427.6,2427.5,1.399]
[1750989181174,0.41175,2427.6,2427.4,0.7028]
[1750989183483,0.41177,2427.5,2427.4,0.7028]
[1750989183685,6.98974,2427.7,2427.4,0.7028]
[1750989183877,6.578,2427.7,2427.4,0.7028]
[1750989184079,6.98974,2427.7,2427.5,1.3668]
[1750989184580,6.578,2427.7,2427.5,1.3668]
[1750989184882,6.98973,2427.7,2427.5,1.3668]
[1750989185580,6.578,2427.7,2427.5,1.3668]
[1750989186075,6.98974,2427.7,2427.5,1.3668]
[1750989186277,6.578,2427.7,2427.5,1.3668]
[1750989186668,6.98974,2427.7,2427.5,1.3668]
[1750989187381,10.23596042,2427.7,2427.5,1.3668]
[1750989187778,6.98974,2427.7,2427.5,1.3668]
[1750989187980,2.46439205,2427.6,2427.5,1.3668]
[1750989188280,2.87614205,2427.6,2427.5,1.3668]
[1750989189181,3.24622042,2428.0,2427.5,9.5746]
[1750989189377,9.82422042,2428.3,2427.6,0.7035]
[1750989189674,9.82422042,2428.3,2427.9,0.4117]
[1750989189880,9.82422042,2428.3,2428.0,2.06]
[1750989190080,6.578,2428.2,2428.1,1.3766]
[1750989190484,6.578,2428.3,2428.1,2.0801]
[1750989190676,0.41162,2428.4,2428.2,1.3766]
[1750989190876,6.577,2428.3,2428.2,1.3766]
[1750989191082,3.6194,2428.5,2428.2,1.3766]
[1750989191280,6.98863,2428.4,2428.2,1.3766]
[1750989191484,6.86563042,2428.5,2428.2,1.3766]
[1750989191785,6.577,2428.4,2428.2,1.3766]
[1750989191971,6.98862,2428.4,2428.2,1.3766]
[1750989192780,0.41162,2428.4,2428.2,1.3766]
[1750989192983,6.577,2428.3,2428.2,1.3766]
[1750989193382,3.61941,2428.5,2428.2,1.3766]
[1750989193582,6.588,2428.4,2428.2,1.3766]
[1750989193883,6.99962,2428.4,2428.2,1.3766]
[1750989194484,6.99863,2428.3,2428.2,1.3766]
[1750989194976,6.587,2428.3,2428.2,1.3766]
[1750989195985,3.24622042,2428.6,2428.2,1.3766]
[1750989196176,0.4116,2428.5,2428.2,1.3766]
[1750989196379,6.99859,2428.6,2428.2,1.3766]
[1750989197577,6.587,2428.6,2428.3,0.41163]
[1750989197877,6.587,2428.6,2428.4,1.3823]
[1750989198075,6.587,2428.6,2428.4,2.0683]
[1750989198279,6.587,2428.6,2428.4,2.47991]
[1750989198579,6.587,2428.6,2428.5,1.3823]
[1750989204186,12.92953598,2428.8,2428.5,1.3823]
[1750989204385,10.24377042,2428.8,2428.5,1.3823]
[1750989204584,12.92954598,2428.8,2428.5,1.3823]
[1750989205592,6.34354598,2428.8,2428.5,1.3823]
[1750989205791,12.92954598,2428.8,2428.5,1.3823]
[1750989206292,6.34354598,2428.8,2428.5,1.3823]
[1750989206795,5.93198598,2428.8,2428.5,1.7939]
[1750989207093,3.24622042,2428.7,2428.5,1.7939]
[1750989207283,3.24622042,2428.7,2428.6,1.3252]
[1750989207992,3.24622042,2428.7,2428.6,1.73678]
[1750989208195,3.24622042,2428.7,2428.6,1.3252]
[1750989208490,3.24622042,2428.7,2428.6,1.73678]
[1750989209392,7.96280358,2429.0,2428.7,0.41156]
[1750989209393,3.24622042,2428.8,2428.7,0.41156]
[1750989209593,6.585,2429.0,2428.7,3.8851]
[1750989209792,6.99652,2429.0,2428.7,3.8851]
[1750989209998,6.585,2429.0,2428.8,0.7094]
[1750989210791,6.585,2429.0,2428.8,2.1418]
[1750989211291,6.585,2429.0,2428.8,2.55334]
[1750989211688,0.4115,2429.1,2428.8,2.55334]
[1750989211890,6.9965,2429.1,2428.8,2.55334]
[1750989212291,0.4115,2429.1,2428.8,2.55334]
[1750989212596,55.32456556,2429.3,2428.8,2.1418]
[1750989212597,10.20427,2429.3,2428.8,2.1418]
[1750989212798,10.20427,2429.3,2428.9,1.80993]
[1750989212997,10.20427,2429.3,2429.0,1.3984]
[1750989214988,9.7928,2429.3,2429.0,1.3984]
[1750989215192,5.66989734,2429.7,2429.0,9.6062]
[1750989215392,2.46209734,2429.9,2429.4,3.2078]
[1750989215692,2.46209734,2429.9,2429.3,42.8744]
[1750989215693,2.68576556,2429.6,2429.3,42.8744]
[1750989216004,2.68576556,2429.4,2429.1,3.2078]
[1750989216308,0.7197,2429.5,2429.1,45.1114]
[1750989216803,0.7197,2429.5,2429.2,1.4427]
[1750989217299,1.13114,2429.5,2429.2,1.4427]
[1750989217598,0.41145,2429.4,2429.1,3.8999]
[1750989217799,6.30502556,2429.4,2429.1,0.6921]
[1750989218394,0.41146,2429.3,2429.1,0.6921]
[1750989218595,1.07546,2429.3,2428.9,48.0547]
[1750989218795,1.07546,2429.3,2428.9,7.2547]
[1750989219396,1.07546,2429.3,2428.9,2.0029]
[1750989221501,0.41148,2429.2,2428.9,2.0029]
[1750989222406,1.07547,2429.3,2428.9,2.41443]
[1750989222603,1.07547,2429.3,2428.9,2.0029]
[1750989222802,0.41151,2429.1,2428.9,2.0029]
[1750989223004,0.664,2429.3,2428.9,2.0029]
[1750989223199,0.41151,2429.0,2428.9,2.0029]
[1750989223601,0.4115,2429.1,2428.9,2.0029]
[1750989223806,0.41151,2429.0,2428.9,2.0029]
[1750989224105,0.41155,2428.8,2428.7,40.8]
[1750989224310,0.41158,2428.6,2428.5,3.2078]
[1750989224495,0.41158,2428.6,2428.5,3.8883]
[1750989224696,0.41158,2428.6,2428.2,3.9153]
[1750989224697,0.41163,2428.3,2428.2,3.9153]
[1750989224902,0.41163,2428.3,2428.2,4.5958]
[1750989225206,0.41168,2428.0,2427.9,3.2078]
[1750989225707,0.41167,2428.1,2427.9,4.5332]
[1750989226103,0.41167,2428.1,2428.0,1.3254]
[1750989228811,0.41166,2428.2,2428.0,1.3254]
[1750989230010,0.41163,2428.4,2428.0,2.68576556]
[1750989230317,0.41163,2428.4,2428.1,1.4049]
[1750989230506,0.41163,2428.4,2428.1,2.1294]
[1750989230706,0.41162,2428.4,2428.1,2.8266]
[1750989230907,0.41162,2428.4,2428.2,1.4049]
[1750989231108,4.31341,2428.5,2428.2,1.4049]
[1750989233408,4.31341,2428.5,2428.2,4.09066556]
[1750989233607,3.61941,2428.5,2428.2,4.09066556]
[1750989233808,0.41161,2428.5,2428.3,1.4376]
[1750989234606,0.41159,2428.6,2428.3,1.4376]
[1750989235109,3.2078,2428.8,2428.3,1.4376]
[1750989235315,0.41155,2428.9,2428.5,3.2078]
[1750989235612,0.41155,2428.9,2428.6,2.0611]
[1750989236606,7.68262,2429.0,2428.6,2.47268]
[1750989236915,7.68262,2429.0,2428.6,5.15844556]
[1750989237115,7.68262,2429.0,2428.7,1.396]
[1750989239420,7.2711,2429.0,2428.7,1.396]
[1750989239822,6.573,2429.0,2428.7,1.396]
[1750989240320,6.573,2429.0,2428.7,42.196]
[1750989240523,0.41149,2429.2,2428.8,5.89356556]
[1750989240715,0.41149,2429.2,2428.8,7.67189556]
[1750989240915,0.41149,2429.2,2428.9,1.3668]
[1750989241319,0.41149,2429.2,2429.0,0.7233]
[1750989241721,0.703,2429.3,2429.1,0.41149]
[1750989242020,0.41142,2429.6,2429.2,3.09724556]
[1750989242211,0.4114,2429.7,2429.2,5.18244556]
[1750989242411,0.4114,2429.7,2429.3,1.77826]
[1750989242618,12.24289734,2429.8,2429.4,4.46399556]
[1750989242824,12.24289734,2429.8,2429.5,2.0901]
[1750989242825,0.4114,2429.7,2429.5,2.0901]
[1750989243211,3.2078,2429.8,2429.5,2.0901]
[1750989243410,2.46209734,2430.0,2429.6,2.68576556]
[1750989243622,2.46209734,2430.0,2429.8,2.68576556]
[1750989243810,2.46209734,2430.0,2429.9,1.3533]
[1750989244017,2.46209734,2430.1,2429.9,2.0717]
[1750989244423,9.03409734,2430.2,2430.0,0.6685]
[1750989244821,9.44540734,2430.2,2430.0,0.6685]
[1750989245323,6.98331,2430.2,2430.0,0.6685]
[1750989245526,6.572,2430.2,2430.0,0.6685]
[1750989245825,2.46209734,2430.3,2430.0,6.56206556]
[1750989246120,2.46209734,2430.3,2430.0,8.32670556]
[1750989246322,5.04658,2430.4,2430.0,8.32670556]
[1750989246517,5.04658,2430.4,2430.0,7.91536556]
[1750989246820,0.41132,2430.2,2430.0,5.2296]
[1750989248326,0.4113,2430.3,2430.0,5.2296]
[1750989249118,0.41131,2430.2,2430.0,5.2296]
[1750989250019,0.4113,2430.3,2430.0,5.2296]
[1750989250627,0.41131,2430.2,2430.0,5.2296]
[1750989250928,3.2078,2430.4,2430.0,7.91536556]
[1750989251233,4.6085,2430.8,2430.2,2.68576556]
[1750989251427,11.58972,2430.8,2430.3,1.75279]
[1750989252019,0.41123,2430.7,2430.3,1.75279]
[1750989252213,0.41125,2430.6,2430.3,1.3415]
[1750989252412,0.41123,2430.7,2430.3,1.3415]
[1750989252726,0.41124,2430.6,2430.3,1.3415]
[1750989252923,0.41124,2430.7,2430.3,1.3415]
[1750989253429,11.1785,2430.8,2430.3,1.3415]
[1750989253430,11.1785,2430.8,2430.4,2.68576556]
[1750989253725,11.1785,2430.8,2430.5,1.403]
[1750989253924,11.1785,2430.8,2430.5,2.0673]
[1750989254521,11.58971,2430.8,2430.5,2.0673]
[1750989254923,5.01971,2430.8,2430.5,2.0673]
[1750989255429,5.01972,2430.8,2430.5,2.0673]
[1750989255819,0.41123,2430.7,2430.5,2.0673]
[1750989256022,0.41125,2430.6,2430.2,43.89706556]
[1750989256223,4.6085,2430.8,2430.3,2.0736]
[1750989256425,0.41123,2430.7,2430.3,2.0736]
[1750989257429,3.2078,2431.1,2430.6,3.2078]
[1750989257726,3.2078,2431.1,2430.8,2.68576556]
[1750989257928,3.2078,2431.1,2430.9,1.3787]
[1750989258126,3.2078,2431.1,2430.9,2.7631]
[1750989259332,3.2078,2431.1,2430.9,1.3844]
[1750989259723,3.2078,2431.1,2430.9,0.6949]
[1750989259929,0.41118,2431.0,2430.9,0.6949]
[1750989260130,3.2078,2431.1,2430.6,2.1091]
[1750989260131,5.89356556,2431.1,2430.6,2.1091]
[1750989260432,0.41119,2431.0,2430.7,0.663]
[1750989260627,3.2078,2431.1,2430.7,1.07422]
[1750989260932,3.2078,2431.1,2430.8,4.48246556]
[1750989261132,3.2078,2431.8,2431.0,3.2078]
[1750989261323,0.4111,2431.5,2431.2,2.68576556]
[1750989262220,0.41108,2431.6,2431.2,3.09689556]
[1750989262428,0.4111,2431.5,2431.3,1.4374]
[1750989262925,0.41114,2431.2,2431.1,0.663]
[1750989263133,0.4111,2431.5,2431.2,1.4374]
[1750989263532,0.41108,2431.6,2431.2,1.4374]
[1750989264133,6.566,2431.6,2431.2,4.12316556]
[1750989264431,6.97706,2431.7,2431.3,0.41111]
[1750989264626,3.61885,2431.8,2431.3,1.78221]
[1750989264941,3.61885,2431.8,2431.4,2.68576556]
[1750989265118,3.61885,2431.8,2431.5,1.3711]
[1750989265423,3.2078,2431.8,2431.5,1.3711]
[1750989265830,3.61884,2431.8,2431.6,0.6799]
[1750989266430,0.41104,2431.8,2431.6,0.6799]
[1750989267735,6.97703,2431.9,2431.6,0.6799]
[1750989268230,0.41104,2431.8,2431.6,0.6799]
[1750989268624,0.41103,2431.9,2431.6,0.6799]
[1750989268822,6.566,2432.0,2431.6,6.98453556]
[1750989269030,6.566,2432.0,2431.8,2.68576556]
[1750989269228,3.2078,2432.1,2431.7,2.0941]
[1750989269429,3.2078,2432.1,2431.8,4.10526556]
[1750989269933,0.41102,2431.9,2431.8,1.4195]
[1750989270127,2.68576556,2431.9,2431.6,3.8877]
[1750989270329,0.41107,2431.7,2431.3,9.25076556]
[1750989270529,1.13905,2431.8,2431.4,1.4098]
[1750989271131,0.41103,2431.9,2431.5,3.09685556]
[1750989271324,0.41103,2431.9,2431.6,1.4098]
[1750989271525,2.68576556,2432.0,2431.6,2.8418]
[1750989271834,0.41106,2431.7,2431.6,0.7195]
[1750989272231,0.41108,2431.6,2431.3,11.37306556]
[1750989272530,2.68576556,2431.4,2430.4,1.60620652]
[1750989272729,0.41113,2431.3,2430.8,3.25301]
[1750989273030,0.41113,2431.3,2430.9,2.68576556]
[1750989273334,2.68576556,2431.4,2431.0,1.4098]
[1750989273531,5.89356556,2431.2,2430.8,3.2078]
[1750989273827,0.6678,2431.1,2430.8,3.2078]
[1750989274132,0.7137,2431.6,2431.0,2.68576556]
[1750989274133,7.2318,2431.5,2431.0,2.68576556]
[1750989274322,0.41112,2431.4,2431.1,2.0886]
[1750989274523,7.6429,2431.5,2431.1,6.0288]
[1750989274722,1.0789,2431.5,2431.2,2.68576556]
[1750989274929,1.0789,2431.5,2431.3,1.3761]
[1750989277943,4.33258,2431.6,2431.3,1.3761]
[1750989278629,0.41109,2431.5,2431.3,1.3761]
[1750989279633,0.41109,2431.5,2430.8,9.7718]
[1750989279634,2.68576556,2431.5,2430.8,9.7718]
[1750989279834,0.41115,2431.2,2430.8,9.7718]
[1750989280026,0.41115,2431.2,2430.8,11.8654]
[1750989280228,1.09395,2431.2,2430.8,52.6654]
[1750989280428,1.09395,2431.2,2430.8,53.07661]
[1750989281536,0.6828,2431.2,2430.8,55.35116556]
[1750989281734,0.6828,2431.2,2430.9,2.46899]
[1750989281935,0.6828,2431.2,2431.0,1.3795]
[1750989283732,1.09395,2431.2,2431.0,1.3795]
[1750989284037,3.2078,2431.6,2431.1,3.2078]
[1750989284233,0.722,2431.5,2431.1,3.61896]
[1750989284439,0.722,2431.5,2431.1,5.06266]
[1750989284938,0.722,2431.5,2431.2,0.41114]
[1750989285838,3.2078,2431.3,2430.9,0.6973]
[1750989286034,3.2078,2431.3,2430.9,2.0634]
[1750989286234,3.2078,2431.3,2430.9,1.3661]
[1750989286439,4.81166556,2431.5,2430.9,1.3661]
[1750989287141,1.4039,2431.4,2430.9,1.77729]
[1750989287540,3.2078,2431.3,2430.9,1.3661]
[1750989287737,2.68576556,2431.1,2430.8,0.7141]
[1750989287938,3.2078,2431.0,2430.5,8.6711]
[1750989288142,0.6706,2430.9,2430.5,8.6711]
[1750989288945,0.6706,2430.9,2430.7,0.41122]
[1750989289145,3.2078,2431.0,2430.5,11.35686556]
[1750989289346,3.61899,2431.0,2430.6,1.4471]
[1750989289534,0.41119,2430.9,2430.6,1.4471]
[1750989289739,0.41119,2430.9,2430.5,10.40201556]
[1750989289946,0.41119,2430.9,2430.5,11.84911556]
[1750989290143,0.41122,2430.8,2430.5,7.305]
[1750989290443,1.408,2430.9,2430.5,7.305]
[1750989290742,1.408,2430.9,2430.5,9.16335]
[1750989290945,3.2078,2431.0,2430.6,0.41124]
[1750989291133,3.2078,2431.0,2430.6,1.85834]
[1750989291538,3.61898,2431.0,2430.6,1.85834]
[1750989291733,3.61898,2431.0,2430.6,1.4471]
[1750989292138,0.41121,2430.9,2430.6,1.4471]
[1750989292441,0.41123,2430.7,2430.4,3.2078]
[1750989292646,4.32805,2430.6,2430.2,0.4113]
[1750989292948,0.7142,2430.7,2430.3,3.61909]
[1750989293140,0.7142,2430.7,2430.4,1.83347]